fUST/lending_fUST_20250812
["ID","MTS","AMOUNT","RATE_DAILY","PERIOD"]
[378650631,1754943052162,-460.0,0.00019178,2]
[378650632,1754943052171,-1218.5,0.00019178,2]
[378650633,1754943052180,-460.0,0.00019178,2]
[378650634,1754943052189,-460.0,0.00019178,2]
[378650635,1754943052198,-1760.0,0.00019178,2]
[378650636,1754943052208,-750.53,0.00019178,2]
[378650637,1754943052217,-1760.0,0.00019178,2]
[378650638,1754943052227,-460.0,0.00019178,2]
[378650639,1754943052236,-460.0,0.00019178,2]
[378650640,1754943052246,-461.3491597,0.00019178,2]
[378650641,1754943052256,-460.0,0.00019178,2]
[378650642,1754943052265,-479.39,0.00019178,2]
[378650643,1754943052274,-476.81930231,0.00019178,2]
[378650644,1754943052283,-460.0,0.00019178,2]
[378650645,1754943052294,-460.0,0.00019178,2]
[378650646,1754943052303,-1760.0,0.00019178,2]
[378650647,1754943052316,-520.44,0.00019178,2]
[378650648,1754943052326,-1760.0,0.00019178,2]
[378650649,1754943052335,-528.91470402,0.00019178,2]
[378650650,1754943052344,-460.0,0.00019178,2]
[378650651,1754943052354,-1760.0,0.00019178,2]
[378650652,1754943052363,-151.0,0.00019178,2]
[378650653,1754943052373,-2495.79,0.00019178,2]
[378650654,1754943052382,-1760.0,0.00019178,2]
[378650655,1754943052391,-325.0,0.00019178,2]
[378650656,1754943052401,-151.0,0.00019178,2]
[378650657,1754943052410,-279.0,0.00019178,2]
[378650658,1754943052420,-1760.0,0.00019178,2]
[378650659,1754943052430,-325.0,0.00019178,2]
[378650660,1754943052439,-1760.0,0.00019178,2]
[378650661,1754943052452,-460.0,0.00019178,2]
[378650662,1754943052461,-325.0,0.00019178,2]
[378650663,1754943052470,-460.0,0.00019178,2]
[378650664,1754943052480,-1760.0,0.00019178,2]
[378650665,1754943052489,-188.11005684,0.00019178,2]
[378650666,1754943052499,-460.0,0.00019178,2]
[378650667,1754943052509,-325.0,0.00019178,2]
[378650668,1754943052518,-151.39906693,0.00019178,2]
[378650669,1754943052527,-5000.0,0.00019178,2]
[378650670,1754943052536,-5000.0,0.00019178,2]
[378650671,1754943052545,-2465.54013957,0.00019178,2]
[378650672,1754943052554,-666.0,0.00019178,2]
[378650673,1754943052565,-168.0,0.0001919,2]
[378650674,1754943052574,-151.0,0.000192,2]
[378650675,1754943052583,-160.0,0.00019211,2]
[378650676,1754943052592,-160.0,0.00019211,2]
[378650677,1754943052601,-527.9539256,0.00019211,2]
[378650678,1754943052610,-461.69158338,0.00019211,2]
[378650679,1754943052619,-231.9940742,0.00019211,2]
[378650680,1754943052629,-843.18994796,0.00019211,2]
[378650681,1754943052638,-417.15472785,0.00019211,2]
[378650682,1754943052647,-160.0,0.00019211,2]
[378650683,1754943052657,-160.0,0.00019211,2]
[378650684,1754943052667,-160.0,0.00019211,2]
[378650685,1754943052676,-215.4905783,0.00019211,2]
[378650686,1754943052687,-160.0,0.00019211,2]
[378650687,1754943052696,-216.68257536,0.00019211,2]
[378650688,1754943052706,-160.0,0.00019211,2]
[378650689,1754943052715,-160.0,0.00019211,2]
[378650690,1754943052725,-160.0,0.00019211,2]
[378650691,1754943052735,-155.426614,0.00019211,2]
[378650692,1754943052744,-299.325092,0.00019211,2]
[378650693,1754943052754,-676.015814,0.00019211,2]
[378650694,1754943052763,-299.325092,0.00019211,2]
[378650695,1754943052772,-676.015814,0.00019211,2]
[378650696,1754943052782,-151.0,0.00019211,2]
[378650697,1754943052791,-151.0,0.00019211,2]
[378650698,1754943052801,-151.0,0.00019211,2]
[378650699,1754943052810,-12671.21867243,0.00019211,2]
[378650700,1754943052820,-151.0,0.00019212,2]
[378650701,1754943052830,-307.387825,0.00019212,2]
[378650702,1754943052840,-307.387825,0.00019212,2]
[378650703,1754943052850,-211.943159,0.00019212,2]
[378650704,1754943052859,-211.943159,0.00019212,2]
[378650705,1754943052870,-1032.2283476,0.00019215,2]
[378650706,1754943052880,-1032.2283476,0.00019284,2]
[378650707,1754943052889,-151.0,0.000193,2]
[378650708,1754943052899,-151.0,0.000193,2]
[378650709,1754943052908,-151.0,0.000193,2]
[378650710,1754943052917,-151.0,0.000193,2]
[378650711,1754943052927,-151.0,0.00019329,2]
[378650712,1754943052936,-151.0,0.00019329,2]
[378650713,1754943052946,-151.0,0.00019329,2]
[378650714,1754943052955,-151.0,0.00019329,2]
[378650715,1754943052964,-151.0,0.00019329,2]
[378650716,1754943052973,-151.0,0.00019329,2]
[378650717,1754943052983,-151.0,0.00019329,2]
[378650718,1754943052992,-151.0,0.00019329,2]
[378650719,1754943053003,-151.0,0.00019329,2]
[378650720,1754943053012,-151.0,0.00019329,2]
[378650721,1754943053021,-272.826563,0.00019329,2]
[378650722,1754943053031,-272.826563,0.00019329,2]
[378650723,1754943053040,-151.0,0.00019329,2]
[378650724,1754943053050,-151.0,0.00019329,2]
[378650725,1754943053060,-518.10809,0.00019329,2]
[378650726,1754943053071,-518.10809,0.00019329,2]
[378650727,1754943053081,-151.0,0.00019329,2]
[378650728,1754943053146,-151.0,0.00019329,2]
[378650729,1754943053156,-151.0,0.00019329,2]
[378650730,1754943053165,-151.0,0.00019329,2]
[378650731,1754943053174,-161.555623,0.00019329,2]
[378650732,1754943053183,-161.555623,0.00019329,2]
[378650733,1754943053192,-151.0,0.00019329,2]
[378650734,1754943053202,-250.431968,0.00019329,2]
[378650735,1754943053211,-151.0,0.00019329,2]
[378650736,1754943053220,-254.907301,0.00019329,2]
[378650737,1754943053229,-307.387825,0.00019329,2]
[378650738,1754943053238,-307.387825,0.00019329,2]
[378650739,1754943053248,-299.325092,0.00019329,2]
[378650740,1754943053258,-676.015814,0.00019329,2]
[378650741,1754943053267,-299.325092,0.00019329,2]
[378650742,1754943053277,-676.015814,0.00019329,2]
[378650743,1754943053286,-151.0,0.00019329,2]
[378650744,1754943053296,-211.943159,0.00019329,2]
[378650745,1754943053305,-211.943159,0.00019329,2]
[378650746,1754943053315,-3541.039696,0.00019329,2]
[378650747,1754943053324,-3541.039696,0.00019329,2]
[378650748,1754943053333,-153.466445,0.00019329,2]
[378650749,1754943053343,-151.0,0.00019329,2]
[378650750,1754943053352,-100000.0,0.00019329,2]
[378650751,1754943053361,-1032.2283476,0.00019352,2]
[378650752,1754943053370,-830.14840316,0.00019352,2]
[378650753,1754943053379,-200.0,0.0001939,2]
[378650754,1754943053388,-151.0,0.000194,2]
[378650755,1754943053398,-151.0,0.000194,2]
[378650756,1754943053407,-151.0,0.000194,2]
[378650757,1754943053416,-8232.34897512,0.000194,2]
[378650758,1754943053425,-250.0,0.00019418,2]
[378650759,1754943053434,-206.234,0.00019418,2]
[378650760,1754943053443,-250.0,0.00019418,2]
[378650761,1754943053456,-220.611,0.00019418,2]
[378650762,1754943053465,-250.0,0.00019418,2]
[378650763,1754943053474,-152.296,0.00019418,2]
[378650764,1754943053483,-261.02,0.00019418,2]
[378650765,1754943053492,-219.814,0.00019418,2]
[378650766,1754943053502,-987.792,0.00019418,2]
[378650767,1754943053512,-636.0,0.00019418,2]
[378650768,1754943053521,-2151.0,0.00019418,2]
[378650769,1754943053532,-500.0,0.00019441,2]
[378650770,1754943053542,-201.64324224,0.00019451,2]
[378650771,1754943053551,-200.0,0.00019451,2]
[378650772,1754943053561,-151.0,0.00019452,2]
[378650773,1754943053571,-151.0,0.00019452,2]
[378650774,1754943053580,-500.0,0.00019452,2]
[378650775,1754943053589,-151.0,0.00019452,2]
[378650776,1754943053599,-500.0,0.00019452,2]
[378650777,1754943053608,-500.0,0.00019452,2]
[378650778,1754943053618,-500.0,0.00019452,2]
[378650779,1754943053627,-604.0,0.00019452,2]
[378650780,1754943053636,-151.0,0.00019452,2]
[378650781,1754943053656,-151.0,0.00019452,2]
[378650782,1754943053666,-151.0,0.00019452,2]
[378650783,1754943053675,-500.0,0.00019452,2]
[378650784,1754943053685,-173.69459988,0.00019452,2]
[378650785,1754943053695,-277.88573075,0.00019452,2]
[378650786,1754943053705,-151.0,0.00019452,2]
[378650787,1754943053714,-151.0,0.00019452,2]
[378650788,1754943053723,-151.0,0.00019452,2]
[378650789,1754943053733,-151.0,0.00019452,2]
[378650790,1754943053743,-500.0,0.00019452,2]
[378650791,1754943053752,-151.0,0.00019452,2]
[378650792,1754943053761,-500.0,0.00019452,2]
[378650793,1754943053772,-500.0,0.00019452,2]
[378650794,1754943053782,-500.0,0.00019452,2]
[378650795,1754943053794,-500.0,0.00019452,2]
[378650796,1754943053804,-151.0,0.00019452,2]
[378650797,1754943053814,-500.0,0.00019452,2]
[378650798,1754943053824,-198.0,0.00019452,2]
[378650799,1754943053833,-154.51495508,0.00019452,2]
[378650800,1754943053842,-151.0,0.00019452,2]
[378650801,1754943053852,-151.0,0.00019452,2]
[378650802,1754943053862,-151.0,0.00019452,2]
[378650803,1754943053872,-151.0,0.00019452,2]
[378650804,1754943053882,-151.0,0.00019452,2]
[378650805,1754943053891,-151.0,0.00019452,2]
[378650806,1754943053900,-247.217336,0.00019452,2]
[378650807,1754943053910,-151.0,0.00019452,2]
[378650808,1754943053919,-151.0,0.00019452,2]
[378650809,1754943053928,-151.0,0.00019452,2]
[378650810,1754943053938,-151.0,0.00019452,2]
[378650811,1754943053948,-151.0,0.00019452,2]
[378650812,1754943053958,-151.0,0.00019452,2]
[378650813,1754943053968,-151.0,0.00019452,2]
[378650814,1754943053977,-151.0,0.00019452,2]
[378650815,1754943053987,-151.0,0.00019452,2]
[378650816,1754943053996,-151.0,0.00019452,2]
[378650817,1754943054006,-151.0,0.00019452,2]
[378650818,1754943054016,-151.0,0.00019452,2]
[378650819,1754943054025,-151.0,0.00019452,2]
[378650820,1754943054034,-151.0,0.00019452,2]
[378650821,1754943054044,-151.0,0.00019452,2]
[378650822,1754943054053,-2000.0,0.00019452,2]
[378650823,1754943054063,-2000.0,0.00019452,2]
[378650824,1754943054073,-710.27,0.00019452,2]
[378650825,1754943054082,-151.0,0.00019452,2]
[378650826,1754943054092,-151.0,0.00019452,2]
[378650827,1754943054101,-157.810565,0.00019452,2]
[378650828,1754943054110,-151.0,0.00019452,2]
[378650829,1754943054120,-151.0,0.00019452,2]
[378650830,1754943054129,-151.0,0.00019452,2]
[378650831,1754943054138,-151.0,0.00019452,2]
[378650832,1754943054148,-151.0,0.00019452,2]
[378650833,1754943054157,-460.0,0.00019452,2]
[378650834,1754943054167,-151.0,0.00019452,2]
[378650835,1754943054176,-151.0,0.00019452,2]
[378650836,1754943054186,-151.0,0.00019452,2]
[378650837,1754943054195,-156.202268,0.00019452,2]
[378650838,1754943054204,-500.90729538,0.00019452,2]
[378650839,1754943054214,-343.65240613,0.00019452,2]
[378650840,1754943054223,-460.0,0.00019452,2]
[378650841,1754943054232,-892.81,0.00019452,2]
[378650842,1754943054241,-460.0,0.00019452,2]
[378650843,1754943054250,-616.05,0.00019452,2]
[378650844,1754943054259,-460.0,0.00019452,2]
[378650845,1754943054273,-210.76500845,0.00019452,2]
[378650846,1754943054285,-720.96,0.00019452,2]
[378650847,1754943054294,-656.99,0.00019452,2]
[378650848,1754943054303,-460.0,0.00019452,2]
[378650849,1754943054313,-600.18,0.00019452,2]
[378650850,1754943054322,-151.0,0.00019452,2]
[378650851,1754943054332,-151.0,0.00019452,2]
[378650852,1754943054341,-272.826563,0.00019452,2]
[378650853,1754943054351,-272.826563,0.00019452,2]
[378650854,1754943054360,-272.826563,0.00019452,2]
[378650855,1754943054370,-272.826563,0.00019452,2]
[378650856,1754943054379,-272.826563,0.00019452,2]
[378650857,1754943054391,-272.826563,0.00019452,2]
[378650858,1754943054401,-272.826563,0.00019452,2]
[378650859,1754943054410,-272.826563,0.00019452,2]
[378650860,1754943054419,-1000.0,0.00019452,2]
[378650861,1754943054429,-460.0,0.00019452,2]
[378650862,1754943054438,-460.0,0.00019452,2]
[378650863,1754943054448,-460.0,0.00019452,2]
[378650864,1754943054461,-882.69,0.00019452,2]
[378650865,1754943054470,-713.45,0.00019452,2]
[378650866,1754943054479,-581.2765512,0.00019452,2]
[378650867,1754943054489,-151.0,0.00019452,2]
[378650868,1754943054498,-460.0,0.00019452,2]
[378650869,1754943054507,-460.0,0.00019452,2]
[378650870,1754943054516,-460.0,0.00019452,2]
[378650871,1754943054526,-183.14996323,0.00019452,2]
[378650872,1754943054535,-460.0,0.00019452,2]
[378650873,1754943054544,-460.0,0.00019452,2]
[378650874,1754943054554,-460.0,0.00019452,2]
[378650875,1754943054564,-460.0,0.00019452,2]
[378650876,1754943054574,-460.0,0.00019452,2]
[378650877,1754943054583,-300.32458464,0.00019452,2]
[378650878,1754943054990,-187.44541536,0.00019452,2]
[378650879,1754943055000,-460.0,0.00019452,2]
[378650880,1754943055010,-460.0,0.00019452,2]
[378650881,1754943055019,-518.10809,0.00019452,2]
[378650882,1754943055028,-518.10809,0.00019452,2]
[378650883,1754943055038,-518.10809,0.00019452,2]
[378650884,1754943055047,-460.0,0.00019452,2]
[378650885,1754943055057,-518.10809,0.00019452,2]
[378650886,1754943055068,-518.10809,0.00019452,2]
[378650887,1754943055077,-460.0,0.00019452,2]
[378650888,1754943055086,-518.10809,0.00019452,2]
[378650889,1754943055095,-518.10809,0.00019452,2]
[378650890,1754943055105,-293.25765535,0.00019452,2]
[378650891,1754943055396,-460.0,0.00019178,2]
[378650892,1754943055406,-4.21697149,0.00019452,2]
[378650893,1754943055418,-220.63346316,0.00019452,2]
[378650894,1754943055427,-518.10809,0.00019452,2]
[378650895,1754943055437,-518.10808,0.00019452,2]
[378650896,1754943055447,-296.12781119,0.00019452,2]
[378650897,1754943055460,-460.0,0.00019452,2]
[378650898,1754943055470,-591.63606736,0.00019452,2]
[378650899,1754943055480,-460.0,0.00019452,2]
[378650900,1754943055491,-460.0,0.00019452,2]
[378650901,1754943055500,-471.59005621,0.00019452,2]
[378650902,1754943055516,-460.0,0.00019452,2]
[378650903,1754943055533,-460.0,0.00019452,2]
[378650904,1754943055543,-460.0,0.00019452,2]
[378650905,1754943055553,-460.0,0.00019452,2]
[378650906,1754943055564,-460.0,0.00019452,2]
[378650907,1754943055575,-460.0,0.00019452,2]
[378650908,1754943055585,-460.0,0.00019452,2]
[378650909,1754943055595,-460.0,0.00019452,2]
[378650910,1754943055605,-460.0,0.00019452,2]
[378650911,1754943055616,-466.36908823,0.00019452,2]
[378650912,1754943055626,-460.0,0.00019452,2]
[378650913,1754943055636,-460.0,0.00019452,2]
[378650914,1754943055647,-460.0,0.00019452,2]
[378650915,1754943055657,-151.0,0.00019452,2]
[378650916,1754943055667,-151.0,0.00019452,2]
[378650917,1754943055678,-151.0,0.00019452,2]
[378650918,1754943055688,-151.0,0.00019452,2]
[378650919,1754943055698,-460.0,0.00019452,2]
[378650920,1754943055708,-151.0,0.00019452,2]
[378650921,1754943055718,-460.0,0.00019452,2]
[378650922,1754943055728,-490.42734385,0.00019452,2]
[378650923,1754943055743,-156.65265615,0.00019452,2]
[378650924,1754943055754,-460.0,0.00019452,2]
[378650925,1754943055764,-103.98255841,0.00019452,2]
[378650926,1754943055777,-356.01744159,0.00019452,2]
[378650927,1754943055787,-279.41473901,0.00019452,2]
[378650928,1754943055810,-89.84197008,0.00019452,2]
[378650929,1754943055821,-807.02,0.00019452,2]
[378650930,1754943055831,-460.0,0.00019452,2]
[378650931,1754943055841,-460.0,0.00019452,2]
[378650932,1754943055851,-460.0,0.00019452,2]
[378650933,1754943055862,-460.0,0.00019452,2]
[378650934,1754943055872,-460.0,0.00019452,2]
[378650935,1754943055882,-798.36,0.00019452,2]
[378650936,1754943055893,-460.0,0.00019452,2]
[378650937,1754943055903,-460.0,0.00019452,2]
[378650938,1754943055913,-460.0,0.00019452,2]
[378650939,1754943055923,-460.0,0.00019452,2]
[378650940,1754943055934,-581.49,0.00019452,2]
[378650941,1754943055944,-461.48970758,0.00019452,2]
[378650942,1754943055954,-460.0,0.00019452,2]
[378650943,1754943055965,-460.0,0.00019452,2]
[378650944,1754943055975,-500.0,0.00019452,2]
[378650945,1754943055984,-460.0,0.00019452,2]
[378650946,1754943055995,-546.96241014,0.00019452,2]
[378650947,1754943056005,-460.0,0.00019452,2]
[378650948,1754943056014,-460.0,0.00019452,2]
[378650949,1754943056025,-460.0,0.00019452,2]
[378650950,1754943056035,-460.0,0.00019452,2]
[378650951,1754943056045,-460.0,0.00019452,2]
[378650952,1754943056055,-460.0,0.00019452,2]
[378650953,1754943056064,-460.0,0.00019452,2]
[378650954,1754943056074,-460.0,0.00019452,2]
[378650955,1754943056084,-460.0,0.00019452,2]
[378650956,1754943056094,-460.0,0.00019452,2]
[378650957,1754943056104,-460.0,0.00019452,2]
[378650958,1754943056115,-460.0,0.00019452,2]
[378650959,1754943056125,-460.0,0.00019452,2]
[378650960,1754943056135,-856.38,0.00019452,2]
[378650961,1754943056145,-460.0,0.00019452,2]
[378650962,1754943056155,-460.0,0.00019452,2]
[378650963,1754943056164,-460.0,0.00019452,2]
[378650964,1754943056174,-471.50981979,0.00019452,2]
[378650965,1754943056184,-460.0,0.00019452,2]
[378650966,1754943056194,-460.0,0.00019452,2]
[378650967,1754943056204,-256.12912092,0.00019452,2]
[378650968,1754943056670,-346.90807175,0.00019178,2]
[378650969,1754943056683,-319.09192825,0.00019178,2]
[378650970,1754943056694,-203.87087908,0.00019452,2]
[378650971,1754943056704,-781.76,0.00019452,2]
[378650972,1754943056714,-4.88179045,0.00019452,2]
[378650973,1754943056727,-850.07820955,0.00019452,2]
[378650974,1754943056737,-554.2849335,0.00019452,2]
[378650975,1754943056747,-460.0,0.00019452,2]
[378650976,1754943056758,-460.0,0.00019452,2]
[378650977,1754943056768,-480.52481825,0.00019452,2]
[378650978,1754943056779,-460.0,0.00019452,2]
[378650979,1754943056789,-1000.0,0.00019452,2]
[378650980,1754943056799,-460.0,0.00019452,2]
[378650981,1754943056810,-460.0,0.00019452,2]
[378650982,1754943056823,-518.04767297,0.00019452,2]
[378650983,1754943056833,-249.540314,0.00019452,2]
[378650984,1754943056844,-460.61577241,0.00019452,2]
[378650985,1754943056855,-460.0,0.00019452,2]
[378650986,1754943056866,-460.0,0.00019452,2]
[378650987,1754943056876,-460.0,0.00019452,2]
[378650988,1754943056886,-569.52717049,0.00019452,2]
[378650989,1754943056897,-151.0,0.00019452,2]
[378650990,1754943056908,-151.0,0.00019452,2]
[378650991,1754943056920,-151.0,0.00019452,2]
[378650992,1754943057168,-151.0,0.00019452,2]
[378650993,1754943057178,-460.0,0.00019452,2]
[378650994,1754943057187,-460.0,0.00019452,2]
[378650995,1754943057196,-151.0,0.00019452,2]
[378650996,1754943057206,-722.61,0.00019452,2]
[378650997,1754943057215,-460.0,0.00019452,2]
[378650998,1754943057224,-151.0,0.00019452,2]
[378650999,1754943057235,-460.0,0.00019452,2]
[378651000,1754943057244,-784.39,0.00019452,2]
[378651001,1754943057253,-477.04698681,0.00019452,2]
[378651002,1754943057263,-460.0,0.00019452,2]
[378651003,1754943057272,-460.0,0.00019452,2]
[378651004,1754943057281,-460.0,0.00019452,2]
[378651005,1754943057291,-460.0,0.00019452,2]
[378651006,1754943057300,-461.09084379,0.00019452,2]
[378651007,1754943057310,-460.0,0.00019452,2]
[378651008,1754943057320,-460.0,0.00019452,2]
[378651009,1754943057329,-460.0,0.00019452,2]
[378651010,1754943057339,-460.0,0.00019452,2]
[378651011,1754943057348,-460.0,0.00019452,2]
[378651012,1754943057358,-995.38,0.00019452,2]
[378651013,1754943057367,-460.0,0.00019452,2]
[378651014,1754943057377,-460.0,0.00019452,2]
[378651015,1754943057387,-460.0,0.00019452,2]
[378651016,1754943057397,-460.0,0.00019452,2]
[378651017,1754943057406,-495.66,0.00019452,2]
[378651018,1754943057416,-460.0,0.00019452,2]
[378651019,1754943057426,-875.74,0.00019452,2]
[378651020,1754943057435,-161.555623,0.00019452,2]
[378651021,1754943057444,-460.0,0.00019452,2]
[378651022,1754943057454,-161.555623,0.00019452,2]
[378651023,1754943057463,-161.555623,0.00019452,2]
[378651024,1754943057473,-161.555623,0.00019452,2]
[378651025,1754943057483,-161.555623,0.00019452,2]
[378651026,1754943057492,-553.11,0.00019452,2]
[378651027,1754943057502,-161.555623,0.00019452,2]
[378651028,1754943057511,-460.0,0.00019452,2]
[378651029,1754943057520,-460.0,0.00019452,2]
[378651030,1754943057529,-161.555623,0.00019452,2]
[378651031,1754943057539,-161.555623,0.00019452,2]
[378651032,1754943057549,-460.0,0.00019452,2]
[378651033,1754943057558,-161.555623,0.00019452,2]
[378651034,1754943057568,-161.555615,0.00019452,2]
[378651035,1754943057577,-463.54142439,0.00019452,2]
[378651036,1754943057586,-460.0,0.00019452,2]
[378651037,1754943057597,-770.55,0.00019452,2]
[378651038,1754943057607,-456.59073452,0.00019452,2]
[378651039,1754943057616,-460.0,0.00019452,2]
[378651040,1754943057626,-460.0,0.00019452,2]
[378651041,1754943057636,-460.0,0.00019452,2]
[378651042,1754943057645,-460.0,0.00019452,2]
[378651043,1754943057654,-460.0,0.00019452,2]
[378651044,1754943057663,-460.0,0.00019452,2]
[378651045,1754943057672,-460.0,0.00019452,2]
[378651046,1754943057682,-590.12,0.00019452,2]
[378651047,1754943057691,-460.0,0.00019452,2]
[378651048,1754943057701,-1779.19,0.00019452,2]
[378651049,1754943057714,-460.0,0.00019452,2]
[378651050,1754943057723,-460.0,0.00019452,2]
[378651051,1754943057733,-460.0,0.00019452,2]
[378651052,1754943057742,-460.0,0.00019452,2]
[378651053,1754943057751,-460.0,0.00019452,2]
[378651054,1754943057761,-460.0,0.00019452,2]
[378651055,1754943057770,-460.0,0.00019452,2]
[378651056,1754943057779,-460.0,0.00019452,2]
[378651057,1754943057789,-460.0,0.00019452,2]
[378651058,1754943057798,-650.59,0.00019452,2]
[378651059,1754943057808,-460.0,0.00019452,2]
[378651060,1754943057818,-460.0,0.00019452,2]
[378651061,1754943057828,-460.0,0.00019452,2]
[378651062,1754943057837,-460.0,0.00019452,2]
[378651063,1754943057846,-460.0,0.00019452,2]
[378651064,1754943057856,-460.0,0.00019452,2]
[378651065,1754943057865,-460.0,0.00019452,2]
[378651066,1754943057874,-460.0,0.00019452,2]
[378651067,1754943057883,-654.85,0.00019452,2]
[378651068,1754943057892,-664.435802,0.00019452,2]
[378651069,1754943057902,-664.435802,0.00019452,2]
[378651070,1754943057911,-460.0,0.00019452,2]
[378651071,1754943057920,-664.435811,0.00019452,2]
[378651072,1754943057929,-460.0,0.00019452,2]
[378651073,1754943057938,-460.0,0.00019452,2]
[378651074,1754943057947,-460.0,0.00019452,2]
[378651075,1754943057956,-460.0,0.00019452,2]
[378651076,1754943057966,-460.0,0.00019452,2]
[378651077,1754943057975,-460.0,0.00019452,2]
[378651078,1754943057984,-460.0,0.00019452,2]
[378651079,1754943057994,-460.0,0.00019452,2]
[378651080,1754943058003,-533.92,0.00019452,2]
[378651081,1754943058014,-460.0,0.00019452,2]
[378651082,1754943058023,-1451.11,0.00019452,2]
[378651083,1754943058033,-460.0,0.00019452,2]
[378651084,1754943058043,-460.0,0.00019452,2]
[378651085,1754943058052,-460.0,0.00019452,2]
[378651086,1754943058061,-460.0,0.00019452,2]
[378651087,1754943058071,-460.0,0.00019452,2]
[378651088,1754943058080,-460.0,0.00019452,2]
[378651089,1754943058090,-460.0,0.00019452,2]
[378651090,1754943058099,-460.0,0.00019452,2]
[378651091,1754943058109,-460.0,0.00019452,2]
[378651092,1754943058118,-460.0,0.00019452,2]
[378651093,1754943058128,-437.010348,0.00019452,2]
[378651094,1754943058137,-460.0,0.00019452,2]
[378651095,1754943058147,-460.0,0.00019452,2]
[378651096,1754943058156,-460.0,0.00019452,2]
[378651097,1754943058165,-437.010348,0.00019452,2]
[378651098,1754943058175,-460.0,0.00019452,2]
[378651099,1754943058184,-1310.2,0.00019452,2]
[378651100,1754943058193,-437.010342,0.00019452,2]
[378651101,1754943058203,-460.0,0.00019452,2]
[378651102,1754943058212,-460.0,0.00019452,2]
[378651103,1754943058222,-460.0,0.00019452,2]
[378651104,1754943058231,-460.0,0.00019452,2]
[378651105,1754943058240,-460.0,0.00019452,2]
[378651106,1754943058249,-460.0,0.00019452,2]
[378651107,1754943058259,-460.0,0.00019452,2]
[378651108,1754943058268,-1082.63,0.00019452,2]
[378651109,1754943058277,-460.0,0.00019452,2]
[378651110,1754943058287,-460.0,0.00019452,2]
[378651111,1754943058296,-1157.37,0.00019452,2]
[378651112,1754943058305,-462.16189847,0.00019452,2]
[378651113,1754943058314,-464.89380412,0.00019452,2]
[378651114,1754943058324,-460.0,0.00019452,2]
[378651115,1754943058334,-1153.22,0.00019452,2]
[378651116,1754943058343,-262.29962447,0.00019452,2]
[378651117,1754943058353,-460.0,0.00019452,2]
[378651118,1754943058363,-460.0,0.00019452,2]
[378651119,1754943058372,-195.96108979,0.00019452,2]
[378651120,1754943058382,-305.8984454,0.00019452,2]
[378651121,1754943058392,-460.0,0.00019452,2]
[378651122,1754943058401,-460.0,0.00019452,2]
[378651123,1754943058410,-460.0,0.00019452,2]
[378651124,1754943058420,-460.0,0.00019452,2]
[378651125,1754943058430,-501.54918664,0.00019452,2]
[378651126,1754943058439,-460.0,0.00019452,2]
[378651127,1754943058450,-836.03,0.00019452,2]
[378651128,1754943058459,-151.0,0.00019452,2]
[378651129,1754943058469,-151.0,0.00019452,2]
[378651130,1754943058483,-2503.76,0.00019452,2]